[Event "Titled Tuesday Blitz August 1 Early 2023"]
[White "chessmateto"]
[Black "Tagliata"]
[WhiteElo "2451"]
[BlackElo "2208"]
[Result "1-0"]
[Round "2"]
[TimeControl "180+1"]
[Date "2023.08.01"]
[WhiteClock "0:00:11"]
[BlackClock "0:00:00"]
[Board "231"]

1. c4 {[%clk 0:03:00]}  Nf6 {[%clk 0:02:54]} 2. Nc3 {[%clk 0:03:00]}  e6 {[%clk 0:02:54]} 3. Nf3 {[%clk 0:02:54]}  d5 {[%clk 0:02:54]} 4. e3 {[%clk 0:02:54]}  Be7 {[%clk 0:02:52]} 5. b3 {[%clk 0:02:53]}  O-O {[%clk 0:02:52]} 6. Bb2 {[%clk 0:02:54]}  c5 {[%clk 0:02:49]} 7. cxd5 {[%clk 0:02:52]}  Nxd5 {[%clk 0:02:47]} 8. Be2 {[%clk 0:02:46]}  Nc6 {[%clk 0:02:44]} 9. O-O {[%clk 0:02:45]}  Bf6 {[%clk 0:02:25]} 10. Rc1 {[%clk 0:02:44]}  Nxc3 {[%clk 0:02:07]} 11. Bxc3 {[%clk 0:02:41]}  e5 {[%clk 0:02:05]} 12. d3 {[%clk 0:02:16]}  Be6 {[%clk 0:01:57]} 13. Nd2 {[%clk 0:02:15]}  Be7 {[%clk 0:01:55]} 14. Nc4 {[%clk 0:02:08]}  f6 {[%clk 0:01:53]} 15. a4 {[%clk 0:02:05]}  Qd7 {[%clk 0:01:50]} 16. Qc2 {[%clk 0:02:01]}  Rfd8 {[%clk 0:01:49]} 17. Rfd1 {[%clk 0:02:00]}  Bf5 {[%clk 0:01:43]} 18. Qb2 {[%clk 0:01:54]}  Rac8 {[%clk 0:01:31]} 19. Rd2 {[%clk 0:01:43]}  Qe6 {[%clk 0:01:27]} 20. e4 {[%clk 0:01:35]}  Bg4 {[%clk 0:01:19]} 21. Bxg4 {[%clk 0:01:26]}  Qxg4 {[%clk 0:01:20]} 22. Ne3 {[%clk 0:01:26]}  Qe6 {[%clk 0:01:17]} 23. Nd5 {[%clk 0:01:25]}  Bf8 {[%clk 0:01:17]} 24. f4 {[%clk 0:01:08]}  exf4 {[%clk 0:01:03]} 25. Nxf4 {[%clk 0:01:05]}  Qg4 {[%clk 0:00:55]} 26. Rf1 {[%clk 0:01:00]}  Bd6 {[%clk 0:00:53]} 27. Nd5 {[%clk 0:00:54]}  Ne5 {[%clk 0:00:41]} 28. Bxe5 {[%clk 0:00:52]}  fxe5 {[%clk 0:00:36]} 29. Rdf2 {[%clk 0:00:45]}  Qe6 {[%clk 0:00:28]} 30. Kh1 {[%clk 0:00:42]}  Rf8 {[%clk 0:00:27]} 31. Rf5 {[%clk 0:00:38]}  Rxf5 {[%clk 0:00:24]} 32. Rxf5 {[%clk 0:00:38]}  Rf8 {[%clk 0:00:24]} 33. Qf2 {[%clk 0:00:34]}  Rxf5 {[%clk 0:00:21]} 34. Qxf5 {[%clk 0:00:35]}  Qxf5 {[%clk 0:00:20]} 35. exf5 {[%clk 0:00:35]}  Kf7 {[%clk 0:00:20]} 36. g4 {[%clk 0:00:32]}  b6 {[%clk 0:00:16]} 37. Kg2 {[%clk 0:00:32]}  Ke8 {[%clk 0:00:15]} 38. Kf3 {[%clk 0:00:32]}  Kd7 {[%clk 0:00:16]} 39. Ke4 {[%clk 0:00:33]}  Kc6 {[%clk 0:00:16]} 40. Ne3 {[%clk 0:00:29]}  Bc7 {[%clk 0:00:16]} 41. Nc4 {[%clk 0:00:29]}  b5 {[%clk 0:00:12]} 42. Nxe5+ {[%clk 0:00:24]}  Kb6 {[%clk 0:00:11]} 43. Nd7+ {[%clk 0:00:20]}  Kc6 {[%clk 0:00:10]} 44. Nf8 {[%clk 0:00:20]}  bxa4 {[%clk 0:00:09]} 45. bxa4 {[%clk 0:00:19]}  Kb6 {[%clk 0:00:06]} 46. h4 {[%clk 0:00:19]}  Ka5 {[%clk 0:00:06]} 47. Ne6 {[%clk 0:00:19]}  Bd6 {[%clk 0:00:05]} 48. Kd5 {[%clk 0:00:19]}  Be7 {[%clk 0:00:05]} 49. g5 {[%clk 0:00:17]}  Kxa4 {[%clk 0:00:04]} 50. Nxg7 {[%clk 0:00:14]}  Kb3 {[%clk 0:00:04]} 51. f6 {[%clk 0:00:14]}  Bf8 {[%clk 0:00:03]} 52. Ne6 {[%clk 0:00:14]}  a5 {[%clk 0:00:04]} 53. Nxf8 {[%clk 0:00:14]}  a4 {[%clk 0:00:04]} 54. Ne6 {[%clk 0:00:15]}  a3 {[%clk 0:00:05]} 55. Nxc5+ {[%clk 0:00:16]}  Kb2 {[%clk 0:00:05]} 56. Na4+ {[%clk 0:00:15]}  Kc2 {[%clk 0:00:05]} 57. f7 {[%clk 0:00:14]}  a2 {[%clk 0:00:06]} 58. f8=Q {[%clk 0:00:15]}  a1=Q {[%clk 0:00:07]} 59. Qf2+ {[%clk 0:00:15]}  Kb3 {[%clk 0:00:07]} 60. Nc5+ {[%clk 0:00:16]}  Kb4 {[%clk 0:00:07]} 61. Qd2+ {[%clk 0:00:15]}  Kb5 {[%clk 0:00:06]} 62. d4 {[%clk 0:00:15]}  Qh1+ {[%clk 0:00:04]} 63. Ne4 {[%clk 0:00:14]}  Kb6 {[%clk 0:00:04]} 64. Qb4+ {[%clk 0:00:14]}  Kc7 {[%clk 0:00:04]} 65. Qd6+ {[%clk 0:00:15]}  Kb7 {[%clk 0:00:05]} 66. Qc6+ {[%clk 0:00:15]}  Kb8 {[%clk 0:00:05]} 67. Qb6+ {[%clk 0:00:15]}  Kc8 {[%clk 0:00:05]} 68. Qc6+ {[%clk 0:00:13]}  Kb8 {[%clk 0:00:05]} 69. Qe8+ {[%clk 0:00:13]}  Kc7 {[%clk 0:00:06]} 70. Qf7+ {[%clk 0:00:14]}  Kb8 {[%clk 0:00:06]} 71. Qxh7 {[%clk 0:00:14]}  Qh3 {[%clk 0:00:05]} 72. Qg8+ {[%clk 0:00:13]}  Kc7 {[%clk 0:00:05]} 73. Qf7+ {[%clk 0:00:13]}  Kb8 {[%clk 0:00:06]} 74. g6 {[%clk 0:00:13]}  Qxh4 {[%clk 0:00:04]} 75. g7 {[%clk 0:00:12]}  Qd8+ {[%clk 0:00:04]} 76. Nd6 {[%clk 0:00:12]}  Qa5+ {[%clk 0:00:04]} 77. Ke6 {[%clk 0:00:12]}  Qe1+ {[%clk 0:00:00]} 78. Kd7 {[%clk 0:00:11]} 1-0


[Site "https://www.chess.com"]

[Event "Titled Tuesday Blitz August 1 Early 2023"]
[White "Rodriguez, Santiago"]
[Black "De Souza, Cristiano Gomes"]
[WhiteFideId "3000591"]
[BlackFideId "2151758"]
[WhiteElo "2447"]
[BlackElo "2196"]
[Result "1-0"]
[Round "2"]
[TimeControl "180+1"]
[Date "2023.08.01"]
[WhiteClock "0:02:17"]
[BlackClock "0:01:34"]
[Board "234"]

1. d4 {[%clk 0:02:58]}  Nf6 {[%clk 0:02:59]} 2. Bg5 {[%clk 0:02:57]}  c5 {[%clk 0:02:58]} 3. d5 {[%clk 0:02:57]}  Qb6 {[%clk 0:02:57]} 4. Nc3 {[%clk 0:02:56]}  Qxb2 {[%clk 0:02:57]} 5. Bd2 {[%clk 0:02:56]}  Qb6 {[%clk 0:02:56]} 6. e4 {[%clk 0:02:57]}  d6 {[%clk 0:02:55]} 7. f4 {[%clk 0:02:58]}  g6 {[%clk 0:02:54]} 8. Nf3 {[%clk 0:02:58]}  Bg7 {[%clk 0:02:54]} 9. Rb1 {[%clk 0:02:59]}  Qd8 {[%clk 0:02:53]} 10. Bb5+ {[%clk 0:02:57]}  Bd7 {[%clk 0:02:52]} 11. e5 {[%clk 0:02:57]}  dxe5 {[%clk 0:02:48]} 12. fxe5 {[%clk 0:02:57]}  Ng4 {[%clk 0:02:48]} 13. e6 {[%clk 0:02:58]}  fxe6 {[%clk 0:02:44]} 14. Ng5 {[%clk 0:02:58]}  Nf6 {[%clk 0:02:24]} 15. Nxe6 {[%clk 0:02:54]}  Qc8 {[%clk 0:02:04]} 16. Nxg7+ {[%clk 0:02:46]}  Kf7 {[%clk 0:02:03]} 17. Bxd7 {[%clk 0:02:45]}  Qxd7 {[%clk 0:02:00]} 18. Ne6 {[%clk 0:02:45]}  Nxd5 {[%clk 0:01:54]} 19. Qf3+ {[%clk 0:02:30]}  Kxe6 {[%clk 0:01:51]} 20. Qe4+ {[%clk 0:02:23]}  Kf7 {[%clk 0:01:48]} 21. Qxd5+ {[%clk 0:02:16]}  Qxd5 {[%clk 0:01:47]} 22. Nxd5 {[%clk 0:02:17]}  b6 {[%clk 0:01:34]} 23. O-O+ {[%clk 0:02:17]} 1-0


[Site "https://www.chess.com"]

[Event "Titled Tuesday Blitz August 1 Early 2023"]
[White "TacticsWizards"]
[Black "Rosh Jain"]
[BlackFideId "25789465"]
[WhiteElo "2189"]
[BlackElo "2446"]
[Result "0-1"]
[Round "2"]
[TimeControl "180+1"]
[Date "2023.08.01"]
[WhiteClock "0:00:08"]
[BlackClock "0:00:02"]
[Board "235"]

1. d4 {[%clk 0:02:56]}  Nf6 {[%clk 0:02:58]} 2. c4 {[%clk 0:02:56]}  e6 {[%clk 0:02:58]} 3. g3 {[%clk 0:02:56]}  d5 {[%clk 0:02:57]} 4. Bg2 {[%clk 0:02:56]}  c5 {[%clk 0:02:57]} 5. Nf3 {[%clk 0:02:56]}  dxc4 {[%clk 0:02:57]} 6. O-O {[%clk 0:02:55]}  Nc6 {[%clk 0:02:56]} 7. Qa4 {[%clk 0:02:47]}  Bd7 {[%clk 0:02:54]} 8. Qxc4 {[%clk 0:02:47]}  cxd4 {[%clk 0:02:53]} 9. Nxd4 {[%clk 0:02:45]}  Nxd4 {[%clk 0:02:51]} 10. Qxd4 {[%clk 0:02:46]}  Bc6 {[%clk 0:02:46]} 11. Bxc6+ {[%clk 0:02:46]}  bxc6 {[%clk 0:02:46]} 12. Qc4 {[%clk 0:02:43]}  Qd5 {[%clk 0:02:45]} 13. Qa4 {[%clk 0:02:38]}  Qb5 {[%clk 0:02:36]} 14. Nc3 {[%clk 0:02:31]}  Qxa4 {[%clk 0:02:35]} 15. Nxa4 {[%clk 0:02:32]}  Bd6 {[%clk 0:02:34]} 16. Be3 {[%clk 0:02:28]}  O-O {[%clk 0:02:32]} 17. Rac1 {[%clk 0:02:28]}  Rfc8 {[%clk 0:02:30]} 18. Rfd1 {[%clk 0:02:26]}  Nd5 {[%clk 0:02:29]} 19. Bc5 {[%clk 0:02:22]}  Bxc5 {[%clk 0:02:25]} 20. Nxc5 {[%clk 0:02:22]}  Rab8 {[%clk 0:02:24]} 21. b3 {[%clk 0:02:22]}  Rb6 {[%clk 0:02:19]} 22. Rd2 {[%clk 0:02:18]}  g6 {[%clk 0:02:15]} 23. Rc4 {[%clk 0:02:04]}  a5 {[%clk 0:02:02]} 24. Ra4 {[%clk 0:01:49]}  Rb5 {[%clk 0:01:52]} 25. Rc4 {[%clk 0:01:37]}  Rb4 {[%clk 0:01:52]} 26. Rdc2 {[%clk 0:01:33]}  Kg7 {[%clk 0:01:15]} 27. Nd3 {[%clk 0:01:33]}  Rxc4 {[%clk 0:01:10]} 28. Rxc4 {[%clk 0:01:34]}  Kf6 {[%clk 0:01:05]} 29. Rc5 {[%clk 0:01:32]}  a4 {[%clk 0:00:46]} 30. b4 {[%clk 0:01:18]}  Ke7 {[%clk 0:00:42]} 31. Ra5 {[%clk 0:01:16]}  Nc3 {[%clk 0:00:35]} 32. Kf1 {[%clk 0:01:05]}  Rb8 {[%clk 0:00:20]} 33. a3 {[%clk 0:01:04]}  Rb6 {[%clk 0:00:17]} 34. Nc5 {[%clk 0:01:00]}  Nb1 {[%clk 0:00:05]} 35. Ra7+ {[%clk 0:01:00]}  Ke8 {[%clk 0:00:04]} 36. Rxa4 {[%clk 0:00:59]}  f5 {[%clk 0:00:03]} 37. Ra8+ {[%clk 0:00:56]}  Ke7 {[%clk 0:00:02]} 38. Ra7+ {[%clk 0:00:57]}  Kd6 {[%clk 0:00:02]} 39. f4 {[%clk 0:00:47]}  Kd5 {[%clk 0:00:02]} 40. Rd7+ {[%clk 0:00:41]}  Kc4 {[%clk 0:00:02]} 41. Rd3 {[%clk 0:00:35]}  Rb8 {[%clk 0:00:02]} 42. Nxe6 {[%clk 0:00:33]}  Ra8 {[%clk 0:00:02]} 43. Nd4 {[%clk 0:00:28]}  Rxa3 {[%clk 0:00:01]} 44. Rxa3 {[%clk 0:00:26]}  Nxa3 {[%clk 0:00:02]} 45. Nxc6 {[%clk 0:00:26]}  Kb5 {[%clk 0:00:02]} 46. Nd4+ {[%clk 0:00:23]}  Kxb4 {[%clk 0:00:03]} 47. Ne6 {[%clk 0:00:24]}  Nc4 {[%clk 0:00:03]} 48. Nf8 {[%clk 0:00:24]}  Ne3+ {[%clk 0:00:02]} 49. Ke1 {[%clk 0:00:19]}  Ng4 {[%clk 0:00:03]} 50. h3 {[%clk 0:00:18]}  Nf6 {[%clk 0:00:03]} 51. Kf2 {[%clk 0:00:18]}  Kc5 {[%clk 0:00:03]} 52. Kf3 {[%clk 0:00:18]}  Kd6 {[%clk 0:00:03]} 53. e4 {[%clk 0:00:12]}  fxe4+ {[%clk 0:00:03]} 54. Ke3 {[%clk 0:00:13]}  Ke7 {[%clk 0:00:03]} 55. Nxh7 {[%clk 0:00:12]}  Nxh7 {[%clk 0:00:03]} 56. Kxe4 {[%clk 0:00:13]}  Ke6 {[%clk 0:00:03]} 57. g4 {[%clk 0:00:13]}  Nf6+ {[%clk 0:00:03]} 58. Kd4 {[%clk 0:00:13]}  Kd6 {[%clk 0:00:03]} 59. Kc4 {[%clk 0:00:10]}  Nd5 {[%clk 0:00:02]} 60. f5 {[%clk 0:00:10]}  g5 {[%clk 0:00:02]} 61. Kd4 {[%clk 0:00:10]}  Nf4 {[%clk 0:00:02]} 62. Ke4 {[%clk 0:00:10]}  Nxh3 {[%clk 0:00:02]} 63. f6 {[%clk 0:00:10]}  Ke6 {[%clk 0:00:02]} 64. f7 {[%clk 0:00:08]}  Kxf7 {[%clk 0:00:02]} 0-1


[Site "https://www.chess.com"]

[Event "Titled Tuesday Blitz August 1 Early 2023"]
[White "Da Matta, Eduardo Cesar"]
[Black "Zeman, Matyas"]
[WhiteFideId "2193108"]
[BlackFideId "364398"]
[WhiteElo "2173"]
[BlackElo "2442"]
[Result "0-1"]
[Round "2"]
[TimeControl "180+1"]
[Date "2023.08.01"]
[WhiteClock "0:01:00"]
[BlackClock "0:01:07"]
[Board "238"]

1. d4 {[%clk 0:03:00]}  Nf6 {[%clk 0:02:59]} 2. c4 {[%clk 0:03:00]}  e6 {[%clk 0:02:59]} 3. Nc3 {[%clk 0:03:00]}  d5 {[%clk 0:03:00]} 4. cxd5 {[%clk 0:03:00]}  Nxd5 {[%clk 0:03:01]} 5. e4 {[%clk 0:02:59]}  Nxc3 {[%clk 0:03:01]} 6. bxc3 {[%clk 0:03:00]}  c5 {[%clk 0:03:02]} 7. Bc4 {[%clk 0:02:58]}  cxd4 {[%clk 0:03:00]} 8. cxd4 {[%clk 0:02:59]}  Bb4+ {[%clk 0:03:00]} 9. Bd2 {[%clk 0:02:59]}  Qxd4 {[%clk 0:02:41]} 10. Bxb4 {[%clk 0:02:54]}  Qxc4 {[%clk 0:02:42]} 11. Qd6 {[%clk 0:02:22]}  Nc6 {[%clk 0:02:41]} 12. a3 {[%clk 0:02:11]}  Nxb4 {[%clk 0:02:12]} 13. Qxb4 {[%clk 0:02:12]}  Qxb4+ {[%clk 0:01:56]} 14. axb4 {[%clk 0:02:13]}  Bd7 {[%clk 0:01:54]} 15. Nf3 {[%clk 0:02:13]}  f6 {[%clk 0:01:53]} 16. O-O {[%clk 0:02:11]}  e5 {[%clk 0:01:53]} 17. Nd2 {[%clk 0:02:07]}  Ke7 {[%clk 0:01:46]} 18. Rfd1 {[%clk 0:02:01]}  Be6 {[%clk 0:01:40]} 19. Nb1 {[%clk 0:01:52]}  Rhc8 {[%clk 0:01:34]} 20. Na3 {[%clk 0:01:43]}  a6 {[%clk 0:01:33]} 21. b5 {[%clk 0:01:41]}  Rc5 {[%clk 0:01:24]} 22. bxa6 {[%clk 0:01:40]}  Rxa6 {[%clk 0:01:25]} 23. Rdb1 {[%clk 0:01:30]}  b6 {[%clk 0:01:20]} 24. h3 {[%clk 0:01:14]}  Rca5 {[%clk 0:01:19]} 25. Nc2 {[%clk 0:01:14]}  Rxa1 {[%clk 0:01:19]} 26. Rxa1 {[%clk 0:01:14]}  Rxa1+ {[%clk 0:01:19]} 27. Nxa1 {[%clk 0:01:15]}  Kd6 {[%clk 0:01:20]} 28. Nc2 {[%clk 0:01:15]}  Kc5 {[%clk 0:01:20]} 29. Kf1 {[%clk 0:01:16]}  b5 {[%clk 0:01:21]} 30. Ke2 {[%clk 0:01:16]}  b4 {[%clk 0:01:22]} 31. Kd2 {[%clk 0:01:16]}  b3 {[%clk 0:01:22]} 32. Ne3 {[%clk 0:01:14]}  Kd4 {[%clk 0:01:21]} 33. f3 {[%clk 0:01:12]}  b2 {[%clk 0:01:19]} 34. Nc2+ {[%clk 0:01:12]}  Kc4 {[%clk 0:01:17]} 35. Na3+ {[%clk 0:01:08]}  Kb3 {[%clk 0:01:13]} 36. Nb1 {[%clk 0:01:07]}  Bc4 {[%clk 0:01:12]} 37. g3 {[%clk 0:01:02]}  Bf1 {[%clk 0:01:09]} 38. h4 {[%clk 0:01:00]}  Bg2 {[%clk 0:01:07]} 39. f4 {[%clk 0:01:00]} 0-1


[Site "https://www.chess.com"]

[Event "Titled Tuesday Blitz August 1 Early 2023"]
[White "ChesscularGodofchess"]
[Black "Rangel, Daniel"]
[BlackFideId "2124475"]
[WhiteElo "2170"]
[BlackElo "2435"]
[Result "1-0"]
[Round "2"]
[TimeControl "180+1"]
[Date "2023.08.01"]
[WhiteClock "0:00:54"]
[BlackClock "0:00:17"]
[Board "239"]

1. d4 {[%clk 0:03:00]}  Nf6 {[%clk 0:02:45]} 2. Nf3 {[%clk 0:02:58]}  e6 {[%clk 0:02:46]} 3. Nbd2 {[%clk 0:02:58]}  c5 {[%clk 0:02:44]} 4. e3 {[%clk 0:02:58]}  b6 {[%clk 0:02:43]} 5. b3 {[%clk 0:02:57]}  Bb7 {[%clk 0:02:44]} 6. Bb2 {[%clk 0:02:57]}  Be7 {[%clk 0:02:45]} 7. Bd3 {[%clk 0:02:54]}  O-O {[%clk 0:02:44]} 8. O-O {[%clk 0:02:54]}  d6 {[%clk 0:02:44]} 9. Qe2 {[%clk 0:02:48]}  a6 {[%clk 0:02:43]} 10. Rfd1 {[%clk 0:02:45]}  Nbd7 {[%clk 0:02:42]} 11. Rac1 {[%clk 0:02:45]}  Re8 {[%clk 0:02:41]} 12. e4 {[%clk 0:02:39]}  cxd4 {[%clk 0:02:39]} 13. Nxd4 {[%clk 0:02:37]}  b5 {[%clk 0:02:33]} 14. c4 {[%clk 0:02:36]}  b4 {[%clk 0:02:24]} 15. f4 {[%clk 0:02:29]}  e5 {[%clk 0:02:13]} 16. Nf5 {[%clk 0:02:24]}  Bf8 {[%clk 0:02:03]} 17. Bb1 {[%clk 0:02:09]}  exf4 {[%clk 0:01:58]} 18. Re1 {[%clk 0:01:41]}  g6 {[%clk 0:01:50]} 19. Nd4 {[%clk 0:01:30]}  Qb6 {[%clk 0:01:36]} 20. Qf2 {[%clk 0:01:30]}  Bh6 {[%clk 0:01:20]} 21. Rcd1 {[%clk 0:01:25]}  Ng4 {[%clk 0:01:16]} 22. Qh4 {[%clk 0:01:22]}  Nde5 {[%clk 0:01:15]} 23. h3 {[%clk 0:01:20]}  Ne3 {[%clk 0:00:42]} 24. Qxh6 {[%clk 0:01:18]}  Nxd1 {[%clk 0:00:42]} 25. Rxd1 {[%clk 0:01:19]}  Nc6 {[%clk 0:00:30]} 26. Nf3 {[%clk 0:01:15]}  Ne5 {[%clk 0:00:28]} 27. Kh1 {[%clk 0:01:08]}  a5 {[%clk 0:00:24]} 28. Ng5 {[%clk 0:01:06]}  Qc6 {[%clk 0:00:15]} 29. Nxc6 {[%clk 0:00:53]}  Bxc6 {[%clk 0:00:16]} 30. Bxe5 {[%clk 0:00:53]}  Rxe5 {[%clk 0:00:16]} 31. Qxh7+ {[%clk 0:00:53]}  Kf8 {[%clk 0:00:17]} 32. Qxf7# {[%clk 0:00:54]} 1-0


[Site "https://www.chess.com"]

[Event "Titled Tuesday Blitz August 1 Early 2023"]
[White "Kashtanov, Ruslan"]
[Black "sterpfi"]
[WhiteFideId "4124871"]
[WhiteElo "2434"]
[BlackElo "2168"]
[Result "1-0"]
[Round "2"]
[TimeControl "180+1"]
[Date "2023.08.01"]
[WhiteClock "0:00:08"]
[BlackClock "0:00:11"]
[Board "240"]

1. e4 {[%clk 0:02:00]}  c6 {[%clk 0:02:52]} 2. d4 {[%clk 0:01:59]}  d5 {[%clk 0:02:53]} 3. e5 {[%clk 0:01:59]}  c5 {[%clk 0:02:53]} 4. Nf3 {[%clk 0:01:58]}  cxd4 {[%clk 0:02:45]} 5. Nxd4 {[%clk 0:01:57]}  Nc6 {[%clk 0:02:42]} 6. c4 {[%clk 0:01:55]}  e6 {[%clk 0:02:36]} 7. Nc3 {[%clk 0:01:54]}  Bb4 {[%clk 0:02:34]} 8. Qg4 {[%clk 0:01:35]}  Nge7 {[%clk 0:02:08]} 9. a3 {[%clk 0:01:20]}  Nxd4 {[%clk 0:01:44]} 10. Qxd4 {[%clk 0:01:08]}  Nc6 {[%clk 0:01:43]} 11. Qg4 {[%clk 0:01:07]}  Qa5 {[%clk 0:01:30]} 12. Bd2 {[%clk 0:01:06]}  d4 {[%clk 0:01:24]} 13. Qxg7 {[%clk 0:00:55]}  Rf8 {[%clk 0:01:01]} 14. Ne4 {[%clk 0:00:51]}  Bxd2+ {[%clk 0:00:52]} 15. Nxd2 {[%clk 0:00:52]}  Qxe5+ {[%clk 0:00:49]} 16. Qxe5 {[%clk 0:00:51]}  Nxe5 {[%clk 0:00:50]} 17. f4 {[%clk 0:00:45]}  Ng4 {[%clk 0:00:44]} 18. Nf3 {[%clk 0:00:40]}  e5 {[%clk 0:00:26]} 19. fxe5 {[%clk 0:00:33]}  Be6 {[%clk 0:00:22]} 20. Rd1 {[%clk 0:00:15]}  Ne3 {[%clk 0:00:18]} 21. Rd2 {[%clk 0:00:14]}  O-O-O {[%clk 0:00:17]} 22. Kf2 {[%clk 0:00:14]}  f6 {[%clk 0:00:15]} 23. exf6 {[%clk 0:00:10]}  Rxf6 {[%clk 0:00:16]} 24. Bd3 {[%clk 0:00:09]}  Bxc4 {[%clk 0:00:16]} 25. Bxc4 {[%clk 0:00:09]}  Nxc4 {[%clk 0:00:17]} 26. Rc1 {[%clk 0:00:09]}  Rc6 {[%clk 0:00:15]} 27. Rxd4 {[%clk 0:00:07]}  Rxd4 {[%clk 0:00:12]} 28. Nxd4 {[%clk 0:00:06]}  Rc7 {[%clk 0:00:11]} 29. Nb5 {[%clk 0:00:04]}  Rc5 {[%clk 0:00:11]} 30. Rxc4 {[%clk 0:00:04]}  Rxc4 {[%clk 0:00:09]} 31. Nd6+ {[%clk 0:00:05]}  Kd7 {[%clk 0:00:10]} 32. Nxc4 {[%clk 0:00:05]}  b5 {[%clk 0:00:10]} 33. Ne3 {[%clk 0:00:06]}  a6 {[%clk 0:00:10]} 34. Ke2 {[%clk 0:00:07]}  Ke6 {[%clk 0:00:10]} 35. Kd2 {[%clk 0:00:08]}  Ke5 {[%clk 0:00:11]} 36. Kd3 {[%clk 0:00:08]}  h5 {[%clk 0:00:11]} 37. g3 {[%clk 0:00:09]}  h4 {[%clk 0:00:12]} 38. gxh4 {[%clk 0:00:08]}  Kf4 {[%clk 0:00:13]} 39. Nd5+ {[%clk 0:00:07]}  Kg4 {[%clk 0:00:11]} 40. Nc7 {[%clk 0:00:08]} 1-0


[Site "https://www.chess.com"]

[Event "Titled Tuesday Blitz August 1 Early 2023"]
[White "BeautiFullMindChess"]
[Black "Fernandez Garcia, Gumersindo"]
[BlackFideId "24516740"]
[WhiteElo "2165"]
[BlackElo "2431"]
[Result "1-0"]
[Round "2"]
[TimeControl "180+1"]
[Date "2023.08.01"]
[WhiteClock "0:01:16"]
[BlackClock "0:00:42"]
[Board "241"]

1. e4 {[%clk 0:03:00]}  c5 {[%clk 0:02:50]} 2. Nf3 {[%clk 0:02:54]}  Nc6 {[%clk 0:02:46]} 3. Bb5 {[%clk 0:02:51]}  g6 {[%clk 0:02:46]} 4. Bxc6 {[%clk 0:02:50]}  dxc6 {[%clk 0:02:45]} 5. d3 {[%clk 0:02:51]}  Bg7 {[%clk 0:02:45]} 6. h3 {[%clk 0:02:50]}  Nf6 {[%clk 0:02:44]} 7. Nc3 {[%clk 0:02:51]}  O-O {[%clk 0:02:43]} 8. Be3 {[%clk 0:02:51]}  b6 {[%clk 0:02:43]} 9. Qd2 {[%clk 0:02:52]}  Re8 {[%clk 0:02:39]} 10. O-O-O {[%clk 0:02:45]}  e5 {[%clk 0:02:33]} 11. Bh6 {[%clk 0:02:44]}  Bh8 {[%clk 0:02:32]} 12. g4 {[%clk 0:02:43]}  Nd7 {[%clk 0:02:31]} 13. h4 {[%clk 0:02:42]}  f6 {[%clk 0:02:24]} 14. g5 {[%clk 0:02:19]}  f5 {[%clk 0:02:11]} 15. exf5 {[%clk 0:02:16]}  gxf5 {[%clk 0:02:12]} 16. h5 {[%clk 0:02:08]}  Re6 {[%clk 0:02:10]} 17. Rdg1 {[%clk 0:01:51]}  Bg7 {[%clk 0:02:05]} 18. g6 {[%clk 0:01:48]}  hxg6 {[%clk 0:02:02]} 19. Bxg7 {[%clk 0:01:40]}  Kxg7 {[%clk 0:01:44]} 20. hxg6 {[%clk 0:01:23]}  Rxg6 {[%clk 0:00:48]} 21. Qh6+ {[%clk 0:01:21]}  Kf7 {[%clk 0:00:44]} 22. Qxg6+ {[%clk 0:01:17]}  Ke7 {[%clk 0:00:42]} 23. Rh7+ {[%clk 0:01:16]} 1-0


[Site "https://www.chess.com"]

[Event "Titled Tuesday Blitz August 1 Early 2023"]
[White "Herman, Daniel"]
[Black "LionKing2367890"]
[WhiteFideId "30935008"]
[WhiteElo "2430"]
[BlackElo "2164"]
[Result "1-0"]
[Round "2"]
[TimeControl "180+1"]
[Date "2023.08.01"]
[WhiteClock "0:01:36"]
[BlackClock "0:02:00"]
[Board "242"]

1. c4 {[%clk 0:03:00]}  Nf6 {[%clk 0:02:59]} 2. Nc3 {[%clk 0:03:01]}  e6 {[%clk 0:02:59]} 3. e4 {[%clk 0:03:01]}  d5 {[%clk 0:02:59]} 4. e5 {[%clk 0:03:02]}  Ng8 {[%clk 0:02:57]} 5. d4 {[%clk 0:03:02]}  Ne7 {[%clk 0:02:57]} 6. h4 {[%clk 0:03:00]}  g6 {[%clk 0:02:56]} 7. h5 {[%clk 0:03:00]}  gxh5 {[%clk 0:02:55]} 8. Qxh5 {[%clk 0:02:59]}  dxc4 {[%clk 0:02:53]} 9. Ne4 {[%clk 0:02:49]}  Qxd4 {[%clk 0:02:34]} 10. Nf6+ {[%clk 0:02:47]}  Kd8 {[%clk 0:02:34]} 11. Nf3 {[%clk 0:01:58]}  Qc5 {[%clk 0:02:22]} 12. Qxf7 {[%clk 0:01:36]}  Bd7 {[%clk 0:02:00]} 13. Rxh7 {[%clk 0:01:36]} 1-0


[Site "https://www.chess.com"]

[Event "Titled Tuesday Blitz August 1 Early 2023"]
[White "Butti, Enrique"]
[Black "GAO"]
[WhiteFideId "3700470"]
[WhiteElo "2163"]
[BlackElo "2430"]
[Result "0-1"]
[Round "2"]
[TimeControl "180+1"]
[Date "2023.08.01"]
[WhiteClock "0:00:56"]
[BlackClock "0:01:09"]
[Board "243"]

1. d4 {[%clk 0:02:59]}  c5 {[%clk 0:02:57]} 2. e3 {[%clk 0:02:58]}  Nf6 {[%clk 0:02:56]} 3. Nf3 {[%clk 0:02:57]}  g6 {[%clk 0:02:55]} 4. Bd3 {[%clk 0:02:56]}  Bg7 {[%clk 0:02:55]} 5. O-O {[%clk 0:02:55]}  O-O {[%clk 0:02:56]} 6. c3 {[%clk 0:02:55]}  d5 {[%clk 0:02:55]} 7. Nbd2 {[%clk 0:02:54]}  Nc6 {[%clk 0:02:55]} 8. a3 {[%clk 0:02:41]}  Qc7 {[%clk 0:02:55]} 9. b4 {[%clk 0:02:38]}  e5 {[%clk 0:02:50]} 10. dxe5 {[%clk 0:02:27]}  Nxe5 {[%clk 0:02:50]} 11. Nxe5 {[%clk 0:02:21]}  Qxe5 {[%clk 0:02:51]} 12. Bb2 {[%clk 0:02:21]}  c4 {[%clk 0:02:51]} 13. Bc2 {[%clk 0:02:12]}  Bf5 {[%clk 0:02:49]} 14. Nf3 {[%clk 0:02:10]}  Bxc2 {[%clk 0:02:33]} 15. Qxc2 {[%clk 0:02:09]}  Qh5 {[%clk 0:02:23]} 16. Rad1 {[%clk 0:02:00]}  Rad8 {[%clk 0:02:21]} 17. a4 {[%clk 0:01:57]}  Rfe8 {[%clk 0:02:19]} 18. b5 {[%clk 0:01:55]}  Ng4 {[%clk 0:02:08]} 19. h3 {[%clk 0:01:51]}  Ne5 {[%clk 0:02:08]} 20. Nd4 {[%clk 0:01:50]}  Nd3 {[%clk 0:02:01]} 21. Rxd3 {[%clk 0:01:50]}  cxd3 {[%clk 0:02:01]} 22. Qxd3 {[%clk 0:01:51]}  Qe5 {[%clk 0:02:00]} 23. Ba1 {[%clk 0:01:46]}  Rc8 {[%clk 0:01:59]} 24. Bb2 {[%clk 0:01:45]}  Rc4 {[%clk 0:01:58]} 25. a5 {[%clk 0:01:38]}  Rec8 {[%clk 0:01:54]} 26. Ra1 {[%clk 0:01:35]}  Qe4 {[%clk 0:01:51]} 27. Qd2 {[%clk 0:01:28]}  h5 {[%clk 0:01:41]} 28. a6 {[%clk 0:01:26]}  b6 {[%clk 0:01:38]} 29. Rd1 {[%clk 0:01:19]}  R8c7 {[%clk 0:01:30]} 30. Nf3 {[%clk 0:01:17]}  R4c5 {[%clk 0:01:28]} 31. Nd4 {[%clk 0:01:16]}  Bxd4 {[%clk 0:01:22]} 32. cxd4 {[%clk 0:01:13]}  Rxb5 {[%clk 0:01:22]} 33. Ba3 {[%clk 0:01:12]}  Ra5 {[%clk 0:01:15]} 34. Bd6 {[%clk 0:01:11]}  Rc6 {[%clk 0:01:13]} 35. Bf4 {[%clk 0:01:05]}  Rxa6 {[%clk 0:01:10]} 36. f3 {[%clk 0:01:01]}  Qc2 {[%clk 0:01:09]} 37. Qe1 {[%clk 0:00:56]}  Ra2 {[%clk 0:01:09]} 0-1


[Site "https://www.chess.com"]